bitfinex/quotes_ETHUSD_20260213
["timestamp","ask_amount","ask_price","bid_price","bid_amount"]
[1770962695388,0.45365667,1938.9,1938.7,0.001]
[1770962695571,0.45565667,1939.0,1938.7,0.001]
[1770962702271,0.45565667,1939.0,1938.8,0.001]
[1770962703298,0.002,1939.0,1938.8,0.001]
[1770962703499,0.49317724,1939.0,1938.8,0.001]
[1770962704298,0.49117724,1938.9,1938.8,0.001]
[1770962706722,0.002,1939.0,1938.8,0.001]
[1770962710775,0.49317724,1939.0,1938.8,0.001]
[1770962712009,0.002,1939.0,1938.8,0.001]
[1770962713783,0.49317724,1939.0,1938.8,0.001]
[1770962713984,0.49317724,1939.0,1938.6,0.001]
[1770962713985,0.49117724,1938.9,1938.6,0.001]
[1770962715082,0.49317724,1938.9,1938.6,0.001]
[1770962715408,0.49317724,1938.9,1938.8,0.001]
[1770962716187,0.002,1938.9,1938.8,0.001]
[1770962716387,3.842,1939.1,1938.8,7.03587912]
[1770962716592,0.002,1939.3,1938.8,7.03587912]
[1770962716794,3.846,1939.3,1938.8,7.03587912]
[1770962717302,0.002,1939.3,1938.9,0.45405324]
[1770962717884,0.002,1939.6,1939.2,1.28919141]
[1770962718095,0.002,1939.8,1939.5,0.45405324]
[1770962719783,0.002,1939.8,1939.3,0.45405324]
[1770962719991,0.002,1939.8,1939.4,1.28905847]
[1770962720186,0.49117724,1939.7,1939.1,1.28922758]
[1770962720714,10.42682588,1939.8,1939.1,1.74328082]
[1770962720906,3.844,1939.6,1939.2,0.45405324]
[1770962722509,3.844,1939.6,1939.3,1.28912494]
[1770962722812,3.844,1939.6,1939.2,1.28914613]
[1770962723189,5.62410408,1939.6,1938.9,1.28934268]
[1770962723389,0.49117724,1939.5,1938.9,1.28934268]
[1770962723714,0.49117724,1939.5,1938.9,3.52334268]
[1770962724816,3.844,1939.5,1939.0,6.58082588]
[1770962725521,0.49117724,1939.7,1939.0,7.03487912]
[1770962725813,3.844,1939.6,1939.0,7.03487912]
[1770962726316,3.844,1939.6,1939.0,6.58082588]
[1770962726495,3.844,1939.6,1939.2,1.74324465]
[1770962726695,3.844,1939.6,1939.2,8.32407053]
[1770962726890,3.844,1939.6,1939.4,0.001]
[1770962727498,3.846,1939.6,1939.4,0.001]
[1770962732014,0.002,1939.6,1939.4,0.001]
[1770962732209,3.846,1939.6,1939.4,0.001]
[1770962732592,0.002,1939.6,1939.4,8.32156037]
[1770962732820,0.002,1939.7,1939.4,8.32156037]
[1770962733021,3.846,1939.7,1939.4,8.32156037]
[1770962733725,3.75962058,1939.7,1939.4,8.32156037]
[1770962733919,0.002,1939.9,1939.5,0.45067602]
[1770962734234,0.002,1939.9,1939.4,7.87088435]
[1770962734936,0.002,1939.9,1939.4,8.36519005]
[1770962735835,0.002,1939.9,1939.6,6.58082588]
[1770962736148,0.002,1939.9,1939.6,9.32413158]
[1770962736924,0.4836389,1940.3,1939.7,1.2888591]
[1770962737230,0.4836389,1939.9,1939.4,0.001]
[1770962737447,0.4836389,1939.9,1939.4,2.251]
[1770962737648,0.4836389,1939.9,1939.4,3.54004841]
[1770962738050,0.4836389,1939.9,1939.4,2.251]
[1770962739335,0.4836389,1939.9,1939.4,3.54005697]
[1770962739727,0.4836389,1939.9,1939.5,0.001]
[1770962740235,0.4836389,1939.8,1939.5,0.001]
[1770962741826,1.28869618,1940.0,1939.5,0.001]
[1770962742025,1.7742774,1940.1,1939.5,0.001]
[1770962742637,0.4836389,1940.0,1939.5,0.001]
[1770962744539,1.77230548,1940.0,1939.5,0.001]
[1770962744734,0.4836389,1939.9,1939.5,0.001]
[1770962745246,0.4836389,1939.7,1939.3,0.001]
[1770962745451,0.4836389,1939.5,1939.3,0.001]
[1770962748141,1.77254846,1939.7,1939.3,0.001]
[1770962749067,0.4836389,1939.6,1939.3,0.001]
[1770962750773,0.4836389,1939.5,1939.3,0.001]
[1770962751877,1.28894473,1939.6,1939.3,0.001]
[1770962752175,1.77258363,1939.6,1939.3,0.001]
[1770962752693,1.77258363,1939.6,1939.4,0.001]
[1770962753685,0.4836389,1939.5,1938.8,0.001]
[1770962753881,0.4836389,1939.5,1938.9,0.4943057]
[1770962754486,0.4836389,1939.5,1938.8,1.78475675]
[1770962755266,0.4836389,1939.5,1938.9,0.4943057]
[1770962755473,9.98977061,1939.6,1939.0,0.4943057]
[1770962755793,10.47340951,1939.6,1939.0,0.4943057]
[1770962755996,0.4836389,1939.5,1938.9,1.28936764]
[1770962757490,0.4836389,1939.5,1938.8,1.7847098]
[1770962758092,1.77268248,1939.5,1938.9,0.4943057]
[1770962758295,9.98978292,1939.6,1938.9,0.4943057]
[1770962758509,0.4836389,1939.5,1938.9,0.4943057]
[1770962760370,1.77265863,1939.5,1938.9,1.78366605]
[1770962760565,7.06327121,1939.4,1938.8,1.29040296]
[1770962760779,0.48244533,1939.3,1938.8,1.29040296]
[1770962761788,6.58082588,1939.4,1938.8,1.29040296]
[1770962761989,6.58082588,1939.4,1938.8,1.7452292]
[1770962762302,7.06327121,1939.4,1938.8,1.7452292]
[1770962762504,1.28912494,1939.3,1938.8,0.45582624]
[1770962762678,1.77157027,1939.3,1938.8,0.001]
[1770962763212,1.77157027,1939.3,1938.8,1.29045501]
[1770962763508,0.48244533,1939.3,1938.8,1.29045501]
[1770962763709,1.77147681,1939.5,1938.8,1.74528125]
[1770962763869,1.77147681,1939.5,1938.9,0.45482624]
[1770962764370,1.77147681,1939.5,1939.0,0.001]
[1770962764571,1.77347681,1939.5,1939.0,0.001]
[1770962768928,8.35328121,1939.5,1939.0,0.001]
[1770962769801,3.842,1939.5,1939.0,0.45582624]
[1770962770437,3.842,1939.5,1939.1,0.45482624]
[1770962771441,3.842,1939.5,1939.2,1.74401765]
[1770962771736,0.002,1939.5,1939.2,1.74401765]
[1770962773443,0.002,1939.5,1939.3,0.45482624]
[1770962774011,0.002,1939.5,1939.2,1.28919141]
[1770962774213,0.002,1939.5,1939.2,1.74401765]
[1770962774942,0.002,1939.5,1939.1,1.28920426]
[1770962776943,0.002,1939.5,1939.1,1.29020426]
[1770962777109,0.002,1939.4,1939.1,1.7450305]
[1770962778440,0.002,1939.4,1939.1,1.29020426]
[1770962778618,0.002,1939.4,1939.2,0.45482624]
[1770962779013,0.002,1939.5,1939.3,0.45482624]
[1770962781448,0.002,1939.5,1939.4,0.45482624]
[1770962783111,0.002,1939.5,1939.4,2.70382624]
[1770962783750,0.002,1939.5,1939.4,3.99288471]
[1770962784145,4.32244533,1940.0,1939.4,3.99288471]
[1770962784349,3.84,1940.0,1939.5,0.45482624]
[1770962784819,4.32244533,1940.0,1939.4,3.99288471]
[1770962785631,0.48244533,1939.9,1939.4,3.53805847]
[1770962785831,1.77117486,1939.9,1939.4,3.54105847]
[1770962786140,7.06224973,1939.8,1939.4,2.252]
[1770962786310,0.48244533,1939.8,1939.4,2.252]
[1770962786742,7.06224973,1939.8,1939.4,2.252]
[1770962787217,0.48244533,1939.8,1939.4,2.252]
[1770962787740,1.77125856,1939.8,1939.4,2.252]
[1770962788537,0.48244533,1939.7,1939.1,1.29022285]
[1770962788713,0.48244533,1939.7,1939.1,3.54222285]
[1770962788911,0.48244533,1939.7,1939.1,1.29022285]
[1770962789137,0.48244533,1939.7,1939.5,0.001]
[1770962789343,0.48444533,1939.7,1939.5,0.001]
[1770962789838,1.77331572,1939.7,1939.5,0.001]
[1770962792423,7.06074095,1939.6,1939.1,2.252]
[1770962792823,0.48093655,1939.5,1939.1,2.252]
[1770962794354,6.5798044,1939.4,1939.1,0.001]
[1770962794530,0.49076085,1939.3,1939.1,0.001]
[1770962794725,7.86892237,1939.4,1939.1,0.001]
[1770962794924,8.35968322,1939.4,1939.1,0.001]
[1770962795645,1.77987882,1939.4,1939.1,0.001]
[1770962798857,12.22648882,1939.6,1939.1,0.001]
[1770962799054,1.288992,1939.5,1939.1,0.001]
[1770962800854,1.77975285,1939.5,1939.1,0.001]
[1770962802061,5.61975285,1939.5,1939.2,0.001]
[1770962802359,0.002,1939.3,1939.2,0.001]
[1770962810874,5.12904068,1939.5,1939.3,0.46920978]
[1770962810875,2.85735405,1939.5,1939.3,0.46920978]
[1770962811071,2.85735405,1939.5,1939.2,0.001]
[1770962812184,2.85735405,1939.5,1939.2,0.47020978]
[1770962813861,2.172,1939.7,1939.2,0.47020978]
[1770962814183,0.004,1939.6,1939.4,1.28905847]
[1770962814355,0.004,1939.6,1939.3,1.75828185]
[1770962814551,0.002,1939.4,1939.3,1.75828185]
[1770962814965,0.002,1939.4,1939.2,1.75936]
[1770962815662,0.002,1939.4,1939.2,0.001]
[1770962815663,0.006,1939.4,1939.2,0.001]
[1770962821969,0.46163553,1939.4,1939.2,0.001]
[1770962822555,0.002,1939.4,1939.2,0.001]
[1770962824281,0.002,1939.4,1939.2,0.49871454]
[1770962826390,0.002,1939.4,1939.3,1.78783948]
[1770962827495,0.002,1939.7,1939.4,0.49771454]
[1770962827693,0.006,1939.7,1939.4,0.49771454]
[1770962829998,0.006,1939.7,1939.5,1.78670654]
[1770962830200,1e-08,1939.7,1939.5,1.78670654]
[1770962831003,0.002,1939.8,1939.4,1.28901313]
[1770962831299,0.002,1939.8,1939.4,3.53601313]
[1770962832091,0.45963553,1939.5,1939.2,0.001]
[1770962832469,6.5752247,1939.6,1939.2,0.001]
[1770962833278,0.45963553,1939.7,1939.2,0.001]
[1770962833997,1.74851944,1939.7,1939.2,0.001]
[1770962836492,0.46163553,1939.8,1939.2,0.49871454]
[1770962837170,3.31898958,1939.8,1939.2,0.49871454]
[1770962838393,2.85935405,1939.8,1939.4,0.49771454]
[1770962839500,0.002,1939.6,1939.4,0.49771454]
[1770962842094,0.002,1939.6,1939.3,1.29012494]
[1770962843309,0.002,1939.6,1939.3,1.78783948]
[1770962843707,0.002,1939.6,1939.5,0.49771454]
[1770962845607,0.002,1939.6,1939.5,1.78670654]
[1770962845810,0.002,1939.6,1939.5,4.04270654]
[1770962847187,0.002,1939.6,1939.5,3.544992]
[1770962847612,0.002,1939.6,1939.5,2.256]
[1770962852328,0.002,1939.6,1939.4,0.001]
[1770962857227,0.47604263,1939.6,1939.4,0.001]
[1770962858738,0.002,1939.6,1939.4,0.001]
[1770962863139,0.002,1939.5,1939.4,0.001]
[1770962866850,0.002,1939.5,1939.3,0.001]
[1770962868351,0.47604263,1939.5,1939.3,0.001]
[1770962868849,0.002,1939.5,1939.3,0.001]
[1770962869232,0.002,1939.5,1939.3,0.49087156]
[1770962870432,0.002,1939.5,1939.3,0.001]
[1770962873960,0.002,1939.5,1939.3,1.29012494]
[1770962875857,0.002,1939.5,1939.4,0.001]
[1770962879077,0.002,1939.5,1939.4,0.49087156]
[1770962879636,0.002,1939.6,1939.4,0.001]
[1770962880139,0.002,1939.6,1939.4,7.06609626]
[1770962880556,0.002,1940.1,1939.8,0.4789538]
[1770962880742,0.002,1940.1,1939.9,8.8562247]
[1770962880947,0.002,1940.1,1939.9,2.281]
[1770962883283,0.48856938,1940.1,1939.6,1.28887623]
[1770962883454,0.48656938,1939.9,1939.4,1.29005266]
[1770962883652,0.48656938,1939.9,1939.4,3.57305371]
[1770962883975,0.48656938,1939.9,1939.4,2.284]
[1770962884171,7.06179408,1939.8,1939.4,2.284]
[1770962884376,0.48656938,1939.7,1939.4,0.001]
[1770962884741,6.5752247,1939.6,1939.4,0.001]
[1770962884946,0.48656938,1939.5,1939.4,0.001]
[1770962886778,1.77556138,1939.5,1939.4,0.001]
[1770962887081,1.77556138,1939.5,1939.2,0.001]
[1770962887082,0.48656938,1939.4,1939.2,0.001]
[1770962887281,0.48656938,1939.4,1939.0,0.001]
[1770962887992,0.48656938,1939.4,1939.3,0.001]
[1770962888774,1.77562785,1939.4,1939.3,0.001]
[1770962888971,0.48656938,1939.3,1939.0,0.001]
[1770962894402,1.77569838,1939.3,1939.0,0.001]
[1770962895106,0.48656938,1939.2,1939.0,0.001]
[1770962895874,0.48656938,1939.2,1938.8,0.001]
[1770962896071,0.48656938,1939.0,1938.8,0.001]
[1770962896714,0.48656938,1938.8,1938.5,0.001]
[1770962898004,1.77604134,1938.8,1938.5,0.001]
[1770962898173,0.48656938,1938.7,1938.5,0.001]
[1770962898682,1.28947196,1938.8,1938.5,0.001]
[1770962898683,0.48656938,1938.8,1938.5,0.001]
[1770962899982,0.48656938,1938.8,1938.6,0.001]
[1770962901304,1.77603817,1938.8,1938.6,0.001]
[1770962902386,7.86944105,1938.9,1938.6,0.001]
[1770962902604,8.35601043,1938.9,1938.6,0.001]
[1770962903187,0.48656938,1938.8,1938.6,0.001]
[1770962903778,0.48656938,1938.8,1938.4,0.001]
[1770962903980,7.86946683,1938.9,1938.4,0.4799538]
[1770962904184,2.184,1938.9,1938.4,0.4799538]
[1770962904405,0.48656938,1939.1,1938.4,0.4799538]
[1770962904912,10.05324479,1939.2,1938.4,0.4799538]
[1770962905282,10.53981417,1939.2,1938.4,0.4799538]
[1770962905710,3.95976823,1939.2,1938.6,0.4789538]
[1770962906009,3.95976823,1939.2,1938.6,1.76850181]
[1770962906210,10.53978981,1939.2,1938.6,1.76850181]
[1770962906707,10.53978981,1939.2,1938.6,0.4789538]
[1770962906907,10.05322043,1939.2,1938.6,0.4789538]
[1770962907109,0.48656938,1939.1,1938.6,0.4789538]
[1770962907410,0.48656938,1939.1,1938.5,1.76855465]
[1770962907999,1.2892867,1939.1,1938.4,5.15974572]
[1770962908184,0.48656938,1939.0,1938.4,5.15974572]
[1770962908385,0.48656938,1939.0,1938.4,5.63869952]
[1770962908903,0.48656938,1939.0,1938.5,0.4789538]
[1770962909213,7.06659096,1939.0,1938.4,0.001]
[1770962909392,0.48656938,1938.9,1938.4,0.001]
[1770962909905,6.58002158,1939.0,1938.4,0.4799538]
[1770962910214,1.77585608,1939.1,1938.5,1.28965695]
[1770962910582,0.48656938,1939.1,1938.5,1.75358542]
[1770962910797,10.05326265,1939.2,1938.6,0.46392847]
[1770962910798,8.34004559,1939.2,1938.6,0.46392847]
[1770962911112,0.47078294,1939.1,1938.5,1.28965695]
[1770962911902,0.47078294,1939.1,1938.5,1.75358542]
[1770962912103,1.76004799,1939.1,1938.5,1.75358542]
[1770962912297,0.47078294,1939.0,1938.6,0.001]
[1770962912612,7.05280452,1939.0,1938.6,0.001]
[1770962912989,0.002,1939.0,1938.6,0.001]
[1770962916006,0.49207458,1939.0,1938.6,0.001]
[1770962916309,0.002,1939.0,1938.6,0.001]
[1770962917211,0.49207458,1939.0,1938.6,0.001]
[1770962917615,7.07209616,1939.0,1938.6,0.001]
[1770962918026,8.36146864,1939.0,1938.6,0.001]
[1770962918225,0.49007458,1938.9,1938.6,0.001]
[1770962920606,0.002,1939.0,1938.6,0.001]
[1770962922226,4.63875895,1939.0,1938.6,0.001]
[1770962922935,0.49007458,1938.9,1938.6,0.001]
[1770962924730,1.77953173,1938.9,1938.6,0.001]
[1770962924935,1.78153173,1938.9,1938.6,0.001]
[1770962926934,1.29145715,1938.9,1938.6,0.001]
[1770962927340,1.78153173,1938.9,1938.6,0.001]
[1770962928752,0.49007458,1938.8,1938.6,0.001]
[1770962929073,1.77955799,1938.8,1938.6,0.001]
[1770962930352,1.28948341,1938.8,1938.6,0.001]
[1770962930554,5.64967432,1938.9,1938.6,0.001]
[1770962930770,1.78146547,1938.9,1938.6,0.001]
[1770962931553,0.002,1938.9,1938.6,0.001]
[1770962932455,0.002,1938.9,1938.6,0.49788613]
[1770962932954,6.58002158,1938.8,1938.6,0.001]
[1770962933140,8.35960625,1938.8,1938.6,0.001]
[1770962933343,0.002,1938.9,1938.6,0.001]
[1770962933566,1.29139962,1938.9,1938.6,0.001]
[1770962934357,0.002,1938.9,1938.6,0.49788613]
[1770962936861,0.002,1938.8,1938.6,0.49788613]
[1770962939269,0.002,1938.8,1938.6,0.001]
[1770962940680,7.04580274,1938.8,1938.6,0.001]
[1770962942444,1.2895239,1938.7,1938.6,0.001]
[1770962942644,8.33531506,1938.8,1938.6,0.001]
[1770962944082,7.8715339,1938.8,1938.6,0.001]
[1770962944448,6.58202158,1938.8,1938.6,0.001]
[1770962945576,0.002,1938.8,1938.6,0.001]
[1770962946750,1.2914619,1938.8,1938.6,0.001]
[1770962947359,0.002,1938.8,1938.6,0.001]
[1770962955766,0.46578116,1938.8,1938.6,0.001]
[1770962955976,0.002,1938.8,1938.6,0.001]
[1770962957285,0.46578116,1938.8,1938.6,0.001]
[1770962958683,1.7552457,1938.8,1938.6,0.001]
[1770962959587,1.7552457,1938.8,1938.5,0.001]
[1770962960491,1.29145852,1938.8,1938.6,0.001]
[1770962960783,0.002,1938.7,1938.6,0.001]
[1770962962182,0.002,1938.7,1938.6,0.46714922]
[1770962962386,0.002,1938.8,1938.6,0.46714922]
[1770962962588,0.002,1938.9,1938.7,0.46614922]
[1770962962770,2.85935405,1939.0,1938.7,0.46614922]
[1770962963164,2.81427437,1939.0,1938.7,0.46614922]
[1770962963961,0.002,1939.1,1938.8,0.46614922]
[1770962964193,0.002,1939.1,1938.7,7.87280784]
[1770962964487,0.002,1939.1,1938.7,1.75567044]
[1770962964664,0.002,1939.1,1938.8,0.46614922]
[1770962967914,0.002,1939.1,1938.8,1.75560107]
[1770962968491,0.002,1939.1,1938.8,0.46614922]
[1770962969581,0.002,1939.1,1938.7,1.75561834]
[1770962969779,0.002,1939.1,1938.7,1.28946912]
[1770962970097,0.002,1939.1,1938.8,0.46614922]
[1770962972986,0.002,1939.1,1938.7,1.28946912]
[1770962973166,0.002,1939.1,1938.8,0.001]
[1770962973370,0.002,1939.0,1938.8,0.001]
[1770962977017,0.002,1939.0,1938.8,0.45480352]
[1770962977413,2.81627437,1939.3,1939.0,0.45380352]
[1770962977721,0.002,1939.3,1939.0,0.45380352]
[1770962977915,0.002,1939.3,1939.0,1.74308612]
[1770962978907,0.002,1939.3,1938.9,7.87267435]
[1770962979109,0.002,1939.3,1938.9,1.28938773]
[1770962979715,0.002,1939.3,1938.9,1.74319125]
[1770962982105,0.002,1939.3,1939.0,0.45380352]
[1770962982450,0.002,1939.3,1939.1,6.58328662]
[1770962982613,0.002,1939.3,1938.9,0.45380352]
[1770962982950,0.002,1939.3,1938.9,2.26]
[1770962983933,0.002,1939.3,1938.8,8.32751701]
[1770962984129,0.002,1939.3,1938.9,2.261]
[1770962985342,0.002,1939.3,1939.0,0.001]
[1770962985495,0.002,1939.2,1939.0,0.001]
[1770962988104,0.002,1939.2,1939.0,0.45480352]
[1770962989636,0.002,1939.2,1939.0,0.001]
[1770962993306,0.46803763,1939.2,1939.0,0.001]
[1770962994937,0.002,1939.2,1939.0,0.001]
[1770962997735,0.002,1939.2,1939.1,0.001]
[1770963003422,0.002,1939.2,1938.9,0.001]
[1770963004548,1.77510297,1939.2,1938.9,0.001]
[1770963006842,1.77510297,1939.2,1938.8,0.001]
[1770963006843,0.48391156,1939.1,1938.7,0.001]
[1770963007414,9.39956099,1939.2,1938.7,0.49066849]
[1770963008748,9.88347255,1939.2,1938.7,0.49066849]
[1770963009421,11.17272274,1939.2,1938.7,0.49066849]
[1770963009621,11.17272274,1939.2,1938.7,0.001]
[1770963010239,11.17272274,1939.2,1938.8,0.001]
[1770963010546,0.002,1939.1,1938.8,0.001]
[1770963010746,0.002,1939.1,1938.8,0.49066849]
[1770963010953,0.002,1939.1,1938.9,0.48966849]
[1770963011561,0.002,1939.1,1938.9,1.77903737]
[1770963012132,0.002,1939.1,1938.9,0.48966849]
[1770963012625,0.002,1939.1,1938.9,1.77905887]
[1770963013654,0.002,1939.1,1938.9,0.48966849]
[1770963014030,0.002,1939.1,1938.8,1.29041013]
[1770963014230,0.002,1939.1,1938.8,0.49066849]
[1770963014830,0.002,1939.1,1938.8,0.001]
[1770963017823,0.002,1939.1,1938.8,1.78012473]
[1770963018054,0.002,1939.1,1938.8,0.49066849]
[1770963020048,0.002,1939.1,1938.8,0.001]
[1770963020554,0.48591156,1939.1,1938.8,0.001]
[1770963021332,0.002,1939.1,1938.8,0.001]
[1770963022855,0.002,1939.1,1938.8,0.49066849]
[1770963025073,0.002,1939.1,1938.9,0.48966849]
[1770963028356,0.002,1939.1,1938.8,0.001]
[1770963033859,0.002,1939.1,1938.9,0.001]
[1770963034035,0.002,1939.0,1938.9,0.001]
[1770963034961,0.002,1939.0,1938.9,0.45664504]
[1770963035138,0.002,1939.0,1938.9,0.001]
[1770963037067,0.002,1939.0,1938.9,1.29039089]
[1770963037772,0.002,1939.0,1938.9,1.74603593]
[1770963038443,0.002,1939.0,1938.9,4.02603593]
[1770963038643,0.002,1939.1,1939.0,0.45564504]
[1770963039041,0.002,1939.1,1938.9,3.57039089]
[1770963039241,0.002,1939.1,1938.9,4.02603593]
[1770963039944,0.002,1939.1,1938.9,2.281]
[1770963040556,0.002,1939.1,1938.9,2.284]
[1770963041068,0.002,1939.1,1938.9,3.57337971]
[1770963041241,0.002,1939.1,1938.9,4.02902475]
[1770963041642,0.002,1939.1,1938.9,3.57337971]
[1770963041853,0.002,1939.1,1939.0,0.45564504]
[1770963044673,0.002,1939.3,1939.1,0.45564504]
[1770963047173,0.002,1939.3,1939.1,1.74489767]
[1770963047680,0.002,1939.3,1939.1,0.45564504]
[1770963047984,0.002,1939.4,1939.2,0.45564504]
[1770963049281,0.002,1939.4,1939.2,1.74480956]
[1770963050063,0.002,1939.4,1939.2,4.04480956]
[1770963050708,0.002,1939.6,1939.4,0.45564504]
[1770963050864,0.002,1939.6,1939.3,6.58098379]
[1770963051488,0.002,1939.6,1939.3,7.87006307]
[1770963052194,0.002,1939.6,1939.3,1.28907928]
[1770963052695,0.46076365,1939.6,1939.2,2.3]
[1770963053197,0.46076365,1939.6,1939.2,3.58918834]
[1770963054696,0.46076365,1939.6,1939.2,2.3]
[1770963055199,0.002,1939.6,1939.2,3.58918432]
[1770963056800,0.002,1939.6,1939.2,4.04482936]
[1770963057605,0.002,1939.6,1939.3,0.001]
[1770963057988,0.002,1939.5,1939.3,0.45664504]
[1770963058608,0.002,1939.5,1939.3,0.001]
[1770963060532,0.499925,1939.5,1939.3,0.001]
[1770963061827,0.497925,1939.4,1938.9,0.001]
[1770963062384,0.497925,1939.3,1938.9,0.00299999]
[1770963063399,0.497925,1939.2,1938.9,0.00299999]
[1770963064122,3.31419937,1939.5,1938.9,0.47556291]
[1770963064319,2.81627437,1939.5,1939.0,7.05354671]
[1770963064516,0.002,1939.6,1939.4,6.58098379]
[1770963064901,0.002,1939.6,1939.4,1.28905847]
[1770963065096,0.002,1939.7,1939.4,7.87004226]
[1770963065312,0.002,1939.7,1939.5,0.47256292]
[1770963066121,0.002,1939.8,1939.7,0.47256292]
[1770963066298,0.002,1940.0,1939.8,6.58098379]
[1770963066504,0.002,1940.0,1939.7,0.47256292]
[1770963066923,0.002,1940.0,1939.7,2.78956292]
[1770963067123,0.002,1940.0,1939.8,1.28879265]
[1770963067703,0.002,1940.0,1939.7,4.07836889]
[1770963068225,0.002,1940.0,1939.7,2.317]
[1770963069004,0.499925,1940.0,1939.7,2.317]
[1770963069627,0.002,1940.0,1939.7,2.317]
[1770963070033,0.002,1939.9,1939.7,3.60583406]
[1770963071024,0.002,1939.9,1939.7,4.07839698]
[1770963071531,0.002,1939.9,1939.7,10.65938077]
[1770963072827,0.002,1940.0,1939.7,10.65938077]
[1770963073048,0.002,1940.0,1939.7,4.07839698]
[1770963073717,0.002,1940.1,1940.0,1.28865979]
[1770963074110,0.002,1940.1,1939.8,5.62748386]
[1770963074111,0.002,1940.1,1939.9,1.28867393]
[1770963074310,0.002,1940.1,1939.7,3.60581215]
[1770963075031,0.002,1940.1,1939.7,4.07837507]
[1770963075335,0.002,1940.1,1939.8,7.05354671]
[1770963075740,0.002,1940.1,1939.8,6.58098379]
[1770963075908,0.002,1940.1,1939.7,4.07837507]
[1770963078007,0.002,1940.1,1939.7,3.60581215]
[1770963078209,0.002,1940.1,1939.8,0.47256292]
[1770963078816,0.002,1940.1,1939.8,7.04565268]
[1770963082311,0.002,1940.1,1939.9,1.28872622]
[1770963082512,0.002,1940.1,1940.0,2.341]
[1770963082909,0.002,1940.4,1940.1,0.47256292]
[1770963083112,0.002,1940.4,1940.0,2.341]
[1770963083113,0.002,1940.4,1940.0,8.91408976]
[1770963084153,0.499925,1940.4,1940.0,2.341]
[1770963085440,0.002,1940.3,1940.0,3.6296496]
[1770963085634,0.002,1940.5,1940.0,4.10221252]
[1770963085841,0.499925,1940.5,1940.0,3.6296496]
[1770963086675,0.499925,1940.5,1940.0,2.341]
[1770963086869,0.497925,1940.4,1940.0,2.341]
[1770963087077,0.497925,1940.4,1940.0,3.62965807]
[1770963087280,0.497925,1940.4,1940.0,2.341]
[1770963087441,0.499925,1940.3,1940.0,2.341]
[1770963087647,0.499925,1940.3,1939.8,2.346]
[1770963088174,0.499925,1940.3,1939.6,3.63487536]
[1770963088943,0.499925,1940.3,1939.6,10.68052804]
[1770963088944,0.497925,1940.2,1939.6,10.68052804]
[1770963089374,1.29048724,1940.3,1939.6,10.68052804]
[1770963089548,0.002,1940.1,1939.6,10.20796512]
[1770963089742,0.002,1940.0,1939.6,3.63487536]
[1770963089951,0.499925,1940.0,1939.6,2.346]
[1770963090381,6.57508976,1940.0,1939.6,2.346]
[1770963090563,0.4842821,1939.9,1939.2,2.21815524]
[1770963090743,0.4842821,1939.7,1939.0,1.29028172]
[1770963090969,0.4842821,1939.6,1939.1,3.63524826]
[1770963091168,0.4862821,1939.6,1939.1,3.63524826]
[1770963092046,0.002,1939.5,1939.1,4.0954144]
[1770963092277,0.4842821,1940.0,1939.4,0.46016614]
[1770963092744,0.002,1939.9,1939.3,6.57308976]
[1770963092949,0.002,1939.9,1939.4,0.46016614]
[1770963093246,0.002,1939.9,1939.5,1.288992]
[1770963094249,0.002,1939.9,1939.4,1.7491746]
[1770963095279,0.48270013,1939.9,1939.3,0.001]
[1770963095667,0.48070013,1939.7,1939.3,0.001]
[1770963096176,0.48270013,1939.6,1939.3,0.001]
[1770963096567,0.002,1939.5,1939.3,0.001]
[1770963097548,0.48270013,1939.5,1939.3,0.001]
[1770963098984,0.48070013,1939.5,1939.2,0.001]
[1770963099189,0.48170013,1939.4,1939.2,0.001]
[1770963099680,0.001,1939.4,1939.2,0.001]
[1770963101081,0.48070013,1939.5,1939.2,0.001]
[1770963101260,0.001,1939.4,1939.2,0.001]
[1770963102184,0.48170013,1939.4,1939.2,0.001]
[1770963105196,0.48070013,1939.3,1939.2,0.001]
[1770963107455,1.76982507,1939.3,1939.2,0.001]
[1770963108381,1.77082507,1939.3,1939.2,0.001]
[1770963108577,0.48170013,1939.3,1939.2,0.001]
[1770963108784,0.001,1939.3,1939.2,0.001]
[1770963109291,0.48170013,1939.3,1939.2,0.001]
[1770963109594,0.001,1939.3,1939.2,0.001]
[1770963109783,0.48170013,1939.3,1939.2,0.001]
[1770963109989,0.001,1939.3,1939.2,0.001]
[1770963112161,5.34959033,1939.7,1939.2,0.001]
[1770963112486,0.001,1939.6,1939.2,0.49941238]
[1770963112662,0.001,1939.8,1939.2,0.49941238]
[1770963113905,0.001,1939.8,1939.3,1.78753732]
[1770963115488,0.001,1939.7,1939.4,0.49841238]
[1770963115788,0.001,1939.9,1939.4,1.7874611]
[1770963116661,0.001,1939.9,1939.3,1.28908185]
[1770963117391,0.001,1939.9,1939.3,1.78749423]
[1770963117589,0.001,1939.9,1939.4,0.49841238]
[1770963119099,0.001,1939.9,1939.4,1.7874407]
[1770963119387,0.002,1939.8,1939.4,1.28902832]
[1770963120694,0.002,1939.8,1939.4,1.28905818]
[1770963122097,0.001,1939.7,1939.3,0.001]
[1770963122594,0.48870294,1939.6,1939.3,0.001]
[1770963122995,0.48870294,1939.4,1939.2,0.001]
[1770963123169,6.57621765,1939.5,1939.2,0.001]
[1770963123499,7.06492059,1939.5,1939.2,0.001]
[1770963123674,8.35393847,1939.5,1939.2,0.001]
[1770963124270,0.48870294,1939.4,1939.2,0.001]